[Event "Titled Tuesday Blitz March 07 Late 2023"]
[White "Einarsson, Halldor Gretar"]
[Black "Kozin, Yuri"]
[WhiteFideId "2300150"]
[BlackFideId "4129920"]
[WhiteElo "2142"]
[BlackElo "2475"]
[Result "0-1"]
[Round "05"]
[TimeControl "180+2"]
[Date "2023.03.07"]
[WhiteClock "0:00:01"]
[BlackClock "0:00:02"]

1. d4 {[%clk 0:03:00]}  d5 {[%clk 0:02:46]} 2. Nf3 {[%clk 0:02:59]}  Nf6 {[%clk 0:02:46]} 3. g3 {[%clk 0:02:58]}  g6 {[%clk 0:02:43]} 4. Bg2 {[%clk 0:02:57]}  Bg7 {[%clk 0:02:43]} 5. O-O {[%clk 0:02:55]}  c6 {[%clk 0:02:44]} 6. c4 {[%clk 0:02:52]}  dxc4 {[%clk 0:02:45]} 7. Ne5 {[%clk 0:02:50]}  Ng4 {[%clk 0:02:44]} 8. f4 {[%clk 0:02:21]}  Nxe5 {[%clk 0:02:42]} 9. fxe5 {[%clk 0:02:17]}  O-O {[%clk 0:02:42]} 10. Bf4 {[%clk 0:02:05]}  f6 {[%clk 0:02:38]} 11. exf6 {[%clk 0:01:48]}  Bxf6 {[%clk 0:02:36]} 12. Be3 {[%clk 0:01:43]}  Be6 {[%clk 0:02:32]} 13. Nc3 {[%clk 0:01:40]}  Na6 {[%clk 0:02:24]} 14. Qd2 {[%clk 0:01:39]}  Nb4 {[%clk 0:02:18]} 15. Ne4 {[%clk 0:01:35]}  Nd5 {[%clk 0:02:09]} 16. Bh6 {[%clk 0:01:27]}  Bg7 {[%clk 0:02:01]} 17. Bxg7 {[%clk 0:01:26]}  Kxg7 {[%clk 0:02:01]} 18. Nc5 {[%clk 0:01:25]}  Bg8 {[%clk 0:01:38]} 19. Nxb7 {[%clk 0:01:13]}  Qb6 {[%clk 0:01:37]} 20. Nc5 {[%clk 0:01:11]}  Rxf1+ {[%clk 0:01:30]} 21. Rxf1 {[%clk 0:01:09]}  e5 {[%clk 0:01:22]} 22. Qg5 {[%clk 0:00:53]}  Qc7 {[%clk 0:00:45]} 23. Bxd5 {[%clk 0:00:32]}  Bxd5 {[%clk 0:00:45]} 24. Qf6+ {[%clk 0:00:32]}  Kg8 {[%clk 0:00:44]} 25. dxe5 {[%clk 0:00:31]}  Qb6 {[%clk 0:00:36]} 26. Qf2 {[%clk 0:00:27]}  Qxb2 {[%clk 0:00:30]} 27. e6 {[%clk 0:00:25]}  Qe5 {[%clk 0:00:17]} 28. Qf7+ {[%clk 0:00:21]}  Kh8 {[%clk 0:00:17]} 29. Qf6+ {[%clk 0:00:18]}  Qxf6 {[%clk 0:00:17]} 30. Rxf6 {[%clk 0:00:18]}  c3 {[%clk 0:00:13]} 31. e7 {[%clk 0:00:12]}  Kg7 {[%clk 0:00:12]} 32. Rf1 {[%clk 0:00:09]}  Re8 {[%clk 0:00:12]} 33. e4 {[%clk 0:00:08]}  Bxa2 {[%clk 0:00:11]} 34. Rc1 {[%clk 0:00:08]}  Rxe7 {[%clk 0:00:10]} 35. Rxc3 {[%clk 0:00:08]}  Re5 {[%clk 0:00:08]} 36. Kf2 {[%clk 0:00:07]}  Bf7 {[%clk 0:00:08]} 37. Ke3 {[%clk 0:00:07]}  Rh5 {[%clk 0:00:07]} 38. h4 {[%clk 0:00:06]}  Re5 {[%clk 0:00:07]} 39. Kd4 {[%clk 0:00:06]}  Re7 {[%clk 0:00:07]} 40. Rf3 {[%clk 0:00:06]}  a5 {[%clk 0:00:05]} 41. e5 {[%clk 0:00:07]}  h6 {[%clk 0:00:04]} 42. Ra3 {[%clk 0:00:07]}  Ra7 {[%clk 0:00:03]} 43. e6 {[%clk 0:00:07]}  Be8 {[%clk 0:00:04]} 44. Ke5 {[%clk 0:00:08]}  a4 {[%clk 0:00:03]} 45. Kd6 {[%clk 0:00:08]}  Ra8 {[%clk 0:00:01]} 46. Rxa4 {[%clk 0:00:08]}  Rxa4 {[%clk 0:00:01]} 47. Nxa4 {[%clk 0:00:08]}  Kf6 {[%clk 0:00:02]} 48. Nc5 {[%clk 0:00:08]}  g5 {[%clk 0:00:02]} 49. Ne4+ {[%clk 0:00:07]}  Kf5 {[%clk 0:00:02]} 50. hxg5 {[%clk 0:00:06]}  hxg5 {[%clk 0:00:03]} 51. Nc5 {[%clk 0:00:05]}  Bh5 {[%clk 0:00:02]} 52. Ke7 {[%clk 0:00:04]}  Kg4 {[%clk 0:00:02]} 53. Kf8 {[%clk 0:00:03]}  Kxg3 {[%clk 0:00:02]} 54. e7 {[%clk 0:00:03]}  Kf4 {[%clk 0:00:02]} 55. Ne6+ {[%clk 0:00:02]}  Kf5 {[%clk 0:00:02]} 56. Nd8 {[%clk 0:00:01]}  g4 {[%clk 0:00:02]} 0-1


[Site "https://www.chess.com"]

[Event "Titled Tuesday Blitz March 07 Late 2023"]
[White "Becerra, Juan David"]
[Black "Botez, Alexandra"]
[WhiteFideId "4404998"]
[BlackFideId "2603365"]
[WhiteElo "2282"]
[BlackElo "2059"]
[Result "0-1"]
[Round "05"]
[TimeControl "180+2"]
[Date "2023.03.07"]
[WhiteClock "0:00:20"]
[BlackClock "0:00:27"]

1. e4 {[%clk 0:02:46]}  e6 {[%clk 0:02:58]} 2. d4 {[%clk 0:02:34]}  d5 {[%clk 0:02:55]} 3. exd5 {[%clk 0:02:25]}  exd5 {[%clk 0:02:53]} 4. c4 {[%clk 0:02:25]}  Nf6 {[%clk 0:02:50]} 5. Nc3 {[%clk 0:02:21]}  Bd6 {[%clk 0:02:43]} 6. c5 {[%clk 0:02:20]}  Be7 {[%clk 0:02:43]} 7. Be3 {[%clk 0:02:02]}  O-O {[%clk 0:02:40]} 8. h3 {[%clk 0:01:45]}  b6 {[%clk 0:02:30]} 9. b3 {[%clk 0:01:45]}  bxc5 {[%clk 0:02:23]} 10. Nf3 {[%clk 0:01:45]}  cxd4 {[%clk 0:02:13]} 11. Bxd4 {[%clk 0:01:45]}  c5 {[%clk 0:02:11]} 12. Be5 {[%clk 0:01:39]}  Nc6 {[%clk 0:02:04]} 13. Bf4 {[%clk 0:01:29]}  d4 {[%clk 0:01:50]} 14. Na4 {[%clk 0:01:28]}  Nd5 {[%clk 0:01:28]} 15. Bd2 {[%clk 0:01:28]}  Bf6 {[%clk 0:01:20]} 16. Rc1 {[%clk 0:01:24]}  Re8+ {[%clk 0:01:19]} 17. Be2 {[%clk 0:01:14]}  d3 {[%clk 0:01:06]} 18. Be3 {[%clk 0:01:12]}  Nxe3 {[%clk 0:01:00]} 19. Qxd3 {[%clk 0:01:02]}  Nxg2+ {[%clk 0:00:48]} 20. Kf1 {[%clk 0:01:02]}  Qxd3 {[%clk 0:00:47]} 21. Bxd3 {[%clk 0:01:02]}  Nf4 {[%clk 0:00:47]} 22. Bc4 {[%clk 0:01:02]}  Bxh3+ {[%clk 0:00:45]} 23. Kg1 {[%clk 0:01:01]}  Ne5 {[%clk 0:00:40]} 24. Nxe5 {[%clk 0:00:48]}  Rxe5 {[%clk 0:00:39]} 25. Kh2 {[%clk 0:00:43]}  Rh5 {[%clk 0:00:37]} 26. Kg3 {[%clk 0:00:39]}  Be5 {[%clk 0:00:33]} 27. Rce1 {[%clk 0:00:21]}  Nd3+ {[%clk 0:00:28]} 28. Rxe5 {[%clk 0:00:19]}  Nxe5 {[%clk 0:00:26]} 29. Rxh3 {[%clk 0:00:19]}  Rxh3+ {[%clk 0:00:26]} 30. Kxh3 {[%clk 0:00:20]}  Nxc4 {[%clk 0:00:27]} 31. bxc4 {[%clk 0:00:21]}  Rd8 {[%clk 0:00:26]} 32. Nxc5 {[%clk 0:00:20]}  Rc8 {[%clk 0:00:27]} 0-1


[Site "https://www.chess.com"]

[Event "Titled Tuesday Blitz March 07 Late 2023"]
[White "Schut, Han"]
[Black "Kielinkei"]
[WhiteFideId "1005561"]
[WhiteElo "2024"]
[BlackElo "2405"]
[Result "0-1"]
[Round "05"]
[TimeControl "180+2"]
[Date "2023.03.07"]
[WhiteClock "0:00:07"]
[BlackClock "0:00:14"]

1. e4 {[%clk 0:03:00]}  c5 {[%clk 0:02:58]} 2. Nf3 {[%clk 0:03:01]}  e6 {[%clk 0:02:58]} 3. c4 {[%clk 0:03:00]}  Nc6 {[%clk 0:02:56]} 4. Nc3 {[%clk 0:02:59]}  Nf6 {[%clk 0:02:51]} 5. Be2 {[%clk 0:02:58]}  Be7 {[%clk 0:02:45]} 6. d4 {[%clk 0:02:56]}  cxd4 {[%clk 0:02:42]} 7. Nxd4 {[%clk 0:02:57]}  O-O {[%clk 0:02:27]} 8. Be3 {[%clk 0:02:56]}  a6 {[%clk 0:02:20]} 9. f3 {[%clk 0:02:48]}  d5 {[%clk 0:02:10]} 10. cxd5 {[%clk 0:02:47]}  exd5 {[%clk 0:02:10]} 11. exd5 {[%clk 0:02:40]}  Nxd5 {[%clk 0:02:08]} 12. Nxd5 {[%clk 0:02:34]}  Qxd5 {[%clk 0:02:07]} 13. Nxc6 {[%clk 0:02:34]}  Qxc6 {[%clk 0:01:53]} 14. O-O {[%clk 0:02:31]}  Bf5 {[%clk 0:01:43]} 15. Rc1 {[%clk 0:02:24]}  Qe6 {[%clk 0:01:42]} 16. Bf2 {[%clk 0:02:08]}  Rfd8 {[%clk 0:01:24]} 17. Qe1 {[%clk 0:02:08]}  Bg5 {[%clk 0:01:11]} 18. Rd1 {[%clk 0:01:43]}  Rxd1 {[%clk 0:01:00]} 19. Bxd1 {[%clk 0:01:29]}  Qc6 {[%clk 0:01:01]} 20. Qc3 {[%clk 0:01:05]}  Qd7 {[%clk 0:00:51]} 21. Bc2 {[%clk 0:00:56]}  Rc8 {[%clk 0:00:48]} 22. Bxf5 {[%clk 0:00:55]}  Qxf5 {[%clk 0:00:49]} 23. Qb3 {[%clk 0:00:52]}  b5 {[%clk 0:00:45]} 24. Re1 {[%clk 0:00:45]}  h6 {[%clk 0:00:43]} 25. Qa3 {[%clk 0:00:38]}  Qf6 {[%clk 0:00:29]} 26. b4 {[%clk 0:00:13]}  Bf4 {[%clk 0:00:28]} 27. g3 {[%clk 0:00:12]}  Be5 {[%clk 0:00:25]} 28. f4 {[%clk 0:00:12]}  Bd4 {[%clk 0:00:25]} 29. Qf3 {[%clk 0:00:11]}  Bb6 {[%clk 0:00:19]} 30. Bxb6 {[%clk 0:00:09]}  Qxb6+ {[%clk 0:00:19]} 31. Qf2 {[%clk 0:00:10]}  Qd6 {[%clk 0:00:17]} 32. Re2 {[%clk 0:00:10]}  Qxb4 {[%clk 0:00:16]} 33. Kg2 {[%clk 0:00:09]}  Qd6 {[%clk 0:00:15]} 34. h4 {[%clk 0:00:08]}  Rc1 {[%clk 0:00:14]} 35. Kh2 {[%clk 0:00:09]}  Qc6 {[%clk 0:00:14]} 36. Kh3 {[%clk 0:00:09]}  Rh1+ {[%clk 0:00:14]} 37. Kg4 {[%clk 0:00:09]}  h5+ {[%clk 0:00:14]} 38. Kxh5 {[%clk 0:00:07]}  Qg6# {[%clk 0:00:14]} 0-1


[Site "https://www.chess.com"]

[Event "Titled Tuesday Blitz March 07 Late 2023"]
[White "Hartikainen, Jarmo"]
[Black "Meunier-Pion, Jean"]
[WhiteFideId "503134"]
[BlackFideId "20685327"]
[WhiteElo "2200"]
[BlackElo "2124"]
[Result "0-1"]
[Round "05"]
[TimeControl "180+2"]
[Date "2023.03.07"]
[WhiteClock "0:00:01"]
[BlackClock "0:00:48"]

1. e4 {[%clk 0:03:00]}  c5 {[%clk 0:02:59]} 2. c3 {[%clk 0:03:00]}  Nf6 {[%clk 0:02:59]} 3. e5 {[%clk 0:03:00]}  Nd5 {[%clk 0:03:00]} 4. d4 {[%clk 0:03:00]}  cxd4 {[%clk 0:03:00]} 5. Nf3 {[%clk 0:03:00]}  d6 {[%clk 0:02:56]} 6. cxd4 {[%clk 0:02:58]}  Nc6 {[%clk 0:02:55]} 7. Nc3 {[%clk 0:02:57]}  dxe5 {[%clk 0:02:52]} 8. dxe5 {[%clk 0:02:54]}  Nxc3 {[%clk 0:02:51]} 9. Qxd8+ {[%clk 0:02:54]}  Kxd8 {[%clk 0:02:46]} 10. bxc3 {[%clk 0:02:52]}  Bg4 {[%clk 0:02:46]} 11. Bf4 {[%clk 0:02:13]}  Bxf3 {[%clk 0:02:41]} 12. gxf3 {[%clk 0:02:12]}  e6 {[%clk 0:02:41]} 13. Bb5 {[%clk 0:01:52]}  Kc7 {[%clk 0:02:40]} 14. Bxc6 {[%clk 0:01:46]}  Kxc6 {[%clk 0:02:40]} 15. Be3 {[%clk 0:01:43]}  Be7 {[%clk 0:02:32]} 16. Ke2 {[%clk 0:01:40]}  Rhd8 {[%clk 0:02:23]} 17. Rhd1 {[%clk 0:01:38]}  b6 {[%clk 0:02:21]} 18. f4 {[%clk 0:01:29]}  Rxd1 {[%clk 0:02:18]} 19. Rxd1 {[%clk 0:01:26]}  Rd8 {[%clk 0:02:19]} 20. Rxd8 {[%clk 0:01:08]}  Bxd8 {[%clk 0:02:19]} 21. c4 {[%clk 0:01:08]}  Be7 {[%clk 0:02:08]} 22. Kd3 {[%clk 0:01:07]}  f5 {[%clk 0:01:55]} 23. h3 {[%clk 0:00:55]}  Bc5 {[%clk 0:01:53]} 24. Bd4 {[%clk 0:00:17]}  Bb4 {[%clk 0:01:46]} 25. a4 {[%clk 0:00:15]}  Be1 {[%clk 0:01:42]} 26. f3 {[%clk 0:00:15]}  Bb4 {[%clk 0:01:41]} 27. Be3 {[%clk 0:00:14]}  Be1 {[%clk 0:01:32]} 28. Bd4 {[%clk 0:00:13]}  Bh4 {[%clk 0:01:32]} 29. Be3 {[%clk 0:00:12]}  Bg3 {[%clk 0:01:32]} 30. Kc3 {[%clk 0:00:11]}  Be1+ {[%clk 0:01:24]} 31. Kd4 {[%clk 0:00:10]}  Bb4 {[%clk 0:01:18]} 32. Kd3 {[%clk 0:00:10]}  Kb7 {[%clk 0:01:18]} 33. Kc2 {[%clk 0:00:06]}  Ka6 {[%clk 0:01:14]} 34. Kb3 {[%clk 0:00:06]}  Ka5 {[%clk 0:01:13]} 35. Bc1 {[%clk 0:00:06]}  Bc5 {[%clk 0:01:04]} 36. Bd2+ {[%clk 0:00:05]}  Ka6 {[%clk 0:01:04]} 37. Bc1 {[%clk 0:00:05]}  Kb7 {[%clk 0:01:05]} 38. Bd2 {[%clk 0:00:05]}  Kc6 {[%clk 0:00:57]} 39. Kc3 {[%clk 0:00:04]}  Kd7 {[%clk 0:00:52]} 40. Kd3 {[%clk 0:00:04]}  Ke7 {[%clk 0:00:51]} 41. a5 {[%clk 0:00:01]}  Kd7 {[%clk 0:00:48]} 0-1


[Site "https://www.chess.com"]

[Event "Titled Tuesday Blitz March 07 Late 2023"]
[White "Antonova, Nadezhda"]
[Black "Davidson, Kevin"]
[WhiteFideId "14700182"]
[BlackFideId "2056810"]
[WhiteElo "1885"]
[BlackElo "2151"]
[Result "1-0"]
[Round "05"]
[TimeControl "180+2"]
[Date "2023.03.07"]
[WhiteClock "0:01:00"]
[BlackClock "0:00:28"]

1. Nf3 {[%clk 0:02:58]}  Nf6 {[%clk 0:02:59]} 2. b3 {[%clk 0:02:57]}  g6 {[%clk 0:03:00]} 3. Bb2 {[%clk 0:02:58]}  Bg7 {[%clk 0:03:00]} 4. g3 {[%clk 0:02:59]}  d6 {[%clk 0:03:00]} 5. d4 {[%clk 0:02:59]}  O-O {[%clk 0:03:00]} 6. Bg2 {[%clk 0:02:59]}  e5 {[%clk 0:02:59]} 7. dxe5 {[%clk 0:02:57]}  Ng4 {[%clk 0:02:59]} 8. O-O {[%clk 0:02:56]}  Nc6 {[%clk 0:02:59]} 9. c4 {[%clk 0:02:54]}  Ngxe5 {[%clk 0:02:58]} 10. Qd2 {[%clk 0:02:54]}  Bf5 {[%clk 0:02:33]} 11. Nc3 {[%clk 0:02:52]}  Re8 {[%clk 0:02:22]} 12. Rfd1 {[%clk 0:02:47]}  a5 {[%clk 0:02:12]} 13. Rac1 {[%clk 0:02:37]}  Qc8 {[%clk 0:01:53]} 14. Nd5 {[%clk 0:02:15]}  a4 {[%clk 0:01:48]} 15. b4 {[%clk 0:02:11]}  a3 {[%clk 0:01:49]} 16. Ba1 {[%clk 0:02:11]}  Nxf3+ {[%clk 0:01:39]} 17. exf3 {[%clk 0:02:01]}  Qd8 {[%clk 0:01:07]} 18. f4 {[%clk 0:01:36]}  Be4 {[%clk 0:00:57]} 19. Bxg7 {[%clk 0:01:30]}  Kxg7 {[%clk 0:00:57]} 20. b5 {[%clk 0:01:30]}  Bxg2 {[%clk 0:00:32]} 21. Kxg2 {[%clk 0:01:18]}  Na5 {[%clk 0:00:32]} 22. Qd4+ {[%clk 0:01:17]}  f6 {[%clk 0:00:30]} 23. Re1 {[%clk 0:01:06]}  Rf8 {[%clk 0:00:28]} 24. Re7+ {[%clk 0:01:01]}  Rf7 {[%clk 0:00:28]} 25. Qxf6+ {[%clk 0:01:00]} 1-0


[Site "https://www.chess.com"]

[Event "Titled Tuesday Blitz March 07 Late 2023"]
[White "Senft, Sean"]
[Black "Cueto, Jonny"]
[WhiteFideId "2044960"]
[BlackFideId "3300145"]
[WhiteElo "1989"]
[BlackElo "2234"]
[Result "1-0"]
[Round "05"]
[TimeControl "180+2"]
[Date "2023.03.07"]
[WhiteClock "0:01:32"]
[BlackClock "0:00:15"]

1. e4 {[%clk 0:02:59]}  e6 {[%clk 0:02:54]} 2. d4 {[%clk 0:02:58]}  d5 {[%clk 0:02:38]} 3. exd5 {[%clk 0:02:58]}  exd5 {[%clk 0:02:38]} 4. Nf3 {[%clk 0:02:58]}  Bd6 {[%clk 0:02:38]} 5. Bd3 {[%clk 0:02:59]}  Ne7 {[%clk 0:02:39]} 6. O-O {[%clk 0:02:59]}  Bg4 {[%clk 0:02:39]} 7. c3 {[%clk 0:02:59]}  Nbc6 {[%clk 0:02:39]} 8. Bg5 {[%clk 0:02:58]}  f6 {[%clk 0:02:39]} 9. Bh4 {[%clk 0:02:58]}  Qd7 {[%clk 0:02:40]} 10. Nbd2 {[%clk 0:02:59]}  O-O-O {[%clk 0:02:39]} 11. b4 {[%clk 0:02:58]}  Nf5 {[%clk 0:02:39]} 12. Bxf5 {[%clk 0:02:57]}  Qxf5 {[%clk 0:02:39]} 13. a4 {[%clk 0:02:52]}  h5 {[%clk 0:02:37]} 14. a5 {[%clk 0:02:46]}  g5 {[%clk 0:02:37]} 15. Bg3 {[%clk 0:02:47]}  h4 {[%clk 0:02:38]} 16. Bxd6 {[%clk 0:02:46]}  Rxd6 {[%clk 0:02:39]} 17. b5 {[%clk 0:02:45]}  Nb8 {[%clk 0:02:37]} 18. b6 {[%clk 0:02:42]}  cxb6 {[%clk 0:02:36]} 19. axb6 {[%clk 0:02:40]}  a6 {[%clk 0:02:36]} 20. c4 {[%clk 0:02:39]}  h3 {[%clk 0:02:34]} 21. g3 {[%clk 0:02:27]}  Re8 {[%clk 0:02:20]} 22. cxd5 {[%clk 0:02:22]}  Qxd5 {[%clk 0:02:14]} 23. Ra3 {[%clk 0:02:06]}  Nc6 {[%clk 0:01:44]} 24. Qa4 {[%clk 0:02:02]}  Re2 {[%clk 0:01:30]} 25. Qc4 {[%clk 0:01:54]}  Qf5 {[%clk 0:01:03]} 26. Qxe2 {[%clk 0:01:42]}  Re6 {[%clk 0:01:02]} 27. Qd3 {[%clk 0:01:40]}  Qd5 {[%clk 0:00:55]} 28. Qc4 {[%clk 0:01:39]}  Qf5 {[%clk 0:00:53]} 29. d5 {[%clk 0:01:38]}  Rd6 {[%clk 0:00:14]} 30. dxc6 {[%clk 0:01:35]}  Rxc6 {[%clk 0:00:15]} 31. Qg8+ {[%clk 0:01:32]}  Kd7 {[%clk 0:00:15]} 32. Rd3+ {[%clk 0:01:32]}  Ke7 {[%clk 0:00:15]} 33. Re1+ {[%clk 0:01:33]}  Re6 {[%clk 0:00:14]} 34. Rxe6+ {[%clk 0:01:31]}  Qxe6 {[%clk 0:00:15]} 35. Qxe6+ {[%clk 0:01:31]}  Bxe6 {[%clk 0:00:15]} 36. Re3 {[%clk 0:01:32]} 1-0


[Site "https://www.chess.com"]

[Event "Titled Tuesday Blitz March 07 Late 2023"]
[White "Chemin, Justo Reinaldo"]
[Black "Carrasco Miranda, Andres"]
[WhiteFideId "2101580"]
[BlackFideId "3405990"]
[WhiteElo "1940"]
[BlackElo "2183"]
[Result "0-1"]
[Round "05"]
[TimeControl "180+2"]
[Date "2023.03.07"]
[WhiteClock "0:00:08"]
[BlackClock "0:00:05"]

1. e4 {[%clk 0:03:00]}  c5 {[%clk 0:02:46]} 2. Nf3 {[%clk 0:03:00]}  d6 {[%clk 0:02:45]} 3. d4 {[%clk 0:03:00]}  cxd4 {[%clk 0:02:46]} 4. Nxd4 {[%clk 0:03:01]}  Nf6 {[%clk 0:02:46]} 5. Nc3 {[%clk 0:03:01]}  a6 {[%clk 0:02:47]} 6. h3 {[%clk 0:02:55]}  e5 {[%clk 0:02:46]} 7. Nde2 {[%clk 0:02:49]}  h5 {[%clk 0:02:45]} 8. Bg5 {[%clk 0:02:45]}  Nbd7 {[%clk 0:02:44]} 9. Qd2 {[%clk 0:02:42]}  b5 {[%clk 0:02:39]} 10. a3 {[%clk 0:02:33]}  Bb7 {[%clk 0:02:34]} 11. f3 {[%clk 0:02:24]}  Be7 {[%clk 0:02:24]} 12. h4 {[%clk 0:02:13]}  Nb6 {[%clk 0:02:23]} 13. Ng3 {[%clk 0:02:10]}  g6 {[%clk 0:02:12]} 14. O-O-O {[%clk 0:02:07]}  Nc8 {[%clk 0:00:59]} 15. f4 {[%clk 0:01:52]}  Qc7 {[%clk 0:00:54]} 16. f5 {[%clk 0:01:46]}  Ng4 {[%clk 0:00:20]} 17. Bxe7 {[%clk 0:01:10]}  Qxe7 {[%clk 0:00:21]} 18. Bd3 {[%clk 0:01:06]}  Nb6 {[%clk 0:00:13]} 19. Rdf1 {[%clk 0:01:00]}  O-O-O {[%clk 0:00:12]} 20. Kb1 {[%clk 0:00:52]}  d5 {[%clk 0:00:12]} 21. exd5 {[%clk 0:00:50]}  Nxd5 {[%clk 0:00:13]} 22. Nxd5 {[%clk 0:00:47]}  Bxd5 {[%clk 0:00:14]} 23. Qc3+ {[%clk 0:00:46]}  Qc7 {[%clk 0:00:13]} 24. Qxc7+ {[%clk 0:00:44]}  Kxc7 {[%clk 0:00:13]} 25. Be4 {[%clk 0:00:43]}  Ne3 {[%clk 0:00:08]} 26. Rf2 {[%clk 0:00:30]}  Bxe4 {[%clk 0:00:07]} 27. Nxe4 {[%clk 0:00:30]}  Nxf5 {[%clk 0:00:08]} 28. Ng5 {[%clk 0:00:15]}  Rd7 {[%clk 0:00:07]} 29. Re1 {[%clk 0:00:15]}  f6 {[%clk 0:00:07]} 30. Ne4 {[%clk 0:00:10]}  Rf8 {[%clk 0:00:06]} 31. Nc5 {[%clk 0:00:09]}  Rd4 {[%clk 0:00:05]} 32. Nxa6+ {[%clk 0:00:08]}  Kd6 {[%clk 0:00:05]} 0-1


[Site "https://www.chess.com"]

[Event "Titled Tuesday Blitz March 07 Late 2023"]
[White "sissahungrychess"]
[Black "Ramirez, Maria Eugenia"]
[BlackFideId "3301680"]
[WhiteElo "2379"]
[BlackElo "1842"]
[Result "0-1"]
[Round "05"]
[TimeControl "180+2"]
[Date "2023.03.07"]
[WhiteClock "0:00:05"]
[BlackClock "0:00:12"]

1. c4 {[%clk 0:03:00]}  Nf6 {[%clk 0:02:59]} 2. g3 {[%clk 0:03:00]}  e6 {[%clk 0:02:59]} 3. Bg2 {[%clk 0:03:01]}  c6 {[%clk 0:02:59]} 4. Nf3 {[%clk 0:03:02]}  d5 {[%clk 0:02:59]} 5. O-O {[%clk 0:03:01]}  Be7 {[%clk 0:02:58]} 6. Qc2 {[%clk 0:03:01]}  O-O {[%clk 0:02:58]} 7. d4 {[%clk 0:03:00]}  Nbd7 {[%clk 0:02:56]} 8. Nbd2 {[%clk 0:03:00]}  Re8 {[%clk 0:02:56]} 9. e4 {[%clk 0:03:00]}  dxe4 {[%clk 0:02:54]} 10. Nxe4 {[%clk 0:03:01]}  Nf8 {[%clk 0:02:53]} 11. Nc3 {[%clk 0:02:56]}  Ng6 {[%clk 0:02:53]} 12. Rd1 {[%clk 0:02:56]}  Qc7 {[%clk 0:02:50]} 13. h4 {[%clk 0:02:53]}  Rb8 {[%clk 0:02:44]} 14. b3 {[%clk 0:02:46]}  a6 {[%clk 0:02:43]} 15. Ne4 {[%clk 0:02:29]}  b5 {[%clk 0:02:37]} 16. Nxf6+ {[%clk 0:02:28]}  gxf6 {[%clk 0:02:21]} 17. c5 {[%clk 0:02:29]}  e5 {[%clk 0:02:12]} 18. h5 {[%clk 0:02:23]}  Nf8 {[%clk 0:02:11]} 19. Bb2 {[%clk 0:02:04]}  Bg4 {[%clk 0:01:56]} 20. dxe5 {[%clk 0:02:03]}  f5 {[%clk 0:01:47]} 21. Nd4 {[%clk 0:01:46]}  Ne6 {[%clk 0:01:32]} 22. Nxf5 {[%clk 0:01:39]}  Bxd1 {[%clk 0:01:18]} 23. Rxd1 {[%clk 0:01:35]}  Bxc5 {[%clk 0:01:17]} 24. Qe4 {[%clk 0:01:24]}  Rbd8 {[%clk 0:01:12]} 25. Rc1 {[%clk 0:01:18]}  Rd2 {[%clk 0:01:07]} 26. Rxc5 {[%clk 0:00:55]}  Rxb2 {[%clk 0:01:04]} 27. Rxc6 {[%clk 0:00:55]}  Qd7 {[%clk 0:01:01]} 28. Rd6 {[%clk 0:00:52]}  Qa7 {[%clk 0:01:00]} 29. Qf3 {[%clk 0:00:21]}  Qc5 {[%clk 0:00:49]} 30. Rxe6 {[%clk 0:00:19]}  Rxe6 {[%clk 0:00:43]} 31. Kh2 {[%clk 0:00:18]}  Qxe5 {[%clk 0:00:40]} 32. h6 {[%clk 0:00:06]}  Kf8 {[%clk 0:00:34]} 33. Bh3 {[%clk 0:00:06]}  Qe2 {[%clk 0:00:24]} 34. Qa8+ {[%clk 0:00:06]}  Re8 {[%clk 0:00:23]} 35. Qd5 {[%clk 0:00:04]}  Qxf2+ {[%clk 0:00:21]} 36. Bg2 {[%clk 0:00:05]}  Rd2 {[%clk 0:00:14]} 37. Qc6 {[%clk 0:00:03]}  Qxg2+ {[%clk 0:00:13]} 38. Qxg2 {[%clk 0:00:04]}  Rxg2+ {[%clk 0:00:13]} 39. Kxg2 {[%clk 0:00:04]}  Re5 {[%clk 0:00:12]} 40. Kf3 {[%clk 0:00:05]}  Rxf5+ {[%clk 0:00:12]} 0-1


[Site "https://www.chess.com"]

[Event "Titled Tuesday Blitz March 07 Late 2023"]
[White "Rios Escobar, Adan"]
[Black "Dorato, Adriano"]
[WhiteFideId "3403645"]
[BlackFideId "2802894"]
[WhiteElo "2373"]
[BlackElo "1709"]
[Result "1-0"]
[Round "05"]
[TimeControl "180+2"]
[Date "2023.03.07"]
[WhiteClock "0:00:16"]
[BlackClock "0:00:01"]

1. d4 {[%clk 0:03:00]}  d5 {[%clk 0:02:54]} 2. g3 {[%clk 0:03:00]}  e6 {[%clk 0:02:50]} 3. c4 {[%clk 0:02:56]}  Be7 {[%clk 0:02:49]} 4. Nf3 {[%clk 0:02:56]}  b6 {[%clk 0:02:49]} 5. cxd5 {[%clk 0:02:56]}  exd5 {[%clk 0:02:49]} 6. Bg2 {[%clk 0:02:56]}  Bb7 {[%clk 0:02:49]} 7. O-O {[%clk 0:02:55]}  Nf6 {[%clk 0:02:49]} 8. Nc3 {[%clk 0:02:55]}  O-O {[%clk 0:02:48]} 9. Bf4 {[%clk 0:02:56]}  Nbd7 {[%clk 0:02:42]} 10. Rc1 {[%clk 0:02:56]}  Re8 {[%clk 0:02:42]} 11. Nb5 {[%clk 0:02:51]}  c6 {[%clk 0:02:30]} 12. Nc7 {[%clk 0:02:45]}  Nf8 {[%clk 0:02:23]} 13. Nxe8 {[%clk 0:02:39]}  Qxe8 {[%clk 0:02:19]} 14. Bh3 {[%clk 0:02:32]}  Ng6 {[%clk 0:02:05]} 15. Bg5 {[%clk 0:02:29]}  h6 {[%clk 0:01:48]} 16. Bxf6 {[%clk 0:02:20]}  Bxf6 {[%clk 0:01:49]} 17. e3 {[%clk 0:02:20]}  Qe7 {[%clk 0:01:32]} 18. Qd2 {[%clk 0:02:11]}  h5 {[%clk 0:01:08]} 19. b4 {[%clk 0:02:08]}  h4 {[%clk 0:01:04]} 20. Bf5 {[%clk 0:02:04]}  hxg3 {[%clk 0:00:55]} 21. hxg3 {[%clk 0:02:04]}  Nf8 {[%clk 0:00:39]} 22. Kg2 {[%clk 0:02:04]}  g6 {[%clk 0:00:38]} 23. Bd3 {[%clk 0:01:53]}  Kg7 {[%clk 0:00:36]} 24. Rh1 {[%clk 0:01:52]}  Ne6 {[%clk 0:00:33]} 25. a4 {[%clk 0:01:50]}  Ng5 {[%clk 0:00:33]} 26. Nxg5 {[%clk 0:01:46]}  Bxg5 {[%clk 0:00:33]} 27. Qb2 {[%clk 0:01:41]}  Re8 {[%clk 0:00:20]} 28. Rce1 {[%clk 0:01:30]}  c5 {[%clk 0:00:18]} 29. bxc5 {[%clk 0:01:25]}  bxc5 {[%clk 0:00:17]} 30. Bb5 {[%clk 0:01:19]}  Qe4+ {[%clk 0:00:14]} 31. f3 {[%clk 0:01:14]}  Qf5 {[%clk 0:00:12]} 32. Bxe8 {[%clk 0:01:08]}  cxd4 {[%clk 0:00:12]} 33. exd4 {[%clk 0:00:42]}  Ba6 {[%clk 0:00:07]} 34. Re5 {[%clk 0:00:40]}  Qf6 {[%clk 0:00:02]} 35. f4 {[%clk 0:00:34]}  Bxf4 {[%clk 0:00:02]} 36. Qf2 {[%clk 0:00:16]}  Bxe5 {[%clk 0:00:02]} 37. dxe5 {[%clk 0:00:16]}  Qxe5 {[%clk 0:00:01]} 38. Qxf7# {[%clk 0:00:16]} 1-0


[Site "https://www.chess.com"]

[Event "Titled Tuesday Blitz March 07 Late 2023"]
[White "Rego, Pedro Filipe"]
[Black "Jesusesmifuerza"]
[WhiteFideId "1904310"]
[WhiteElo "2193"]
[BlackElo "2057"]
[Result "1-0"]
[Round "05"]
[TimeControl "180+2"]
[Date "2023.03.07"]
[WhiteClock "0:02:09"]
[BlackClock "0:01:50"]

1. c4 {[%clk 0:03:00]}  e6 {[%clk 0:02:59]} 2. Nf3 {[%clk 0:02:55]}  d5 {[%clk 0:03:00]} 3. b3 {[%clk 0:02:54]}  Nf6 {[%clk 0:03:01]} 4. Bb2 {[%clk 0:02:51]}  Be7 {[%clk 0:03:01]} 5. e3 {[%clk 0:02:48]}  O-O {[%clk 0:03:02]} 6. Be2 {[%clk 0:02:47]}  c5 {[%clk 0:03:03]} 7. cxd5 {[%clk 0:02:43]}  exd5 {[%clk 0:02:53]} 8. d4 {[%clk 0:02:38]}  Nc6 {[%clk 0:02:51]} 9. O-O {[%clk 0:02:38]}  Bg4 {[%clk 0:02:45]} 10. dxc5 {[%clk 0:02:32]}  Bxc5 {[%clk 0:02:40]} 11. h3 {[%clk 0:02:23]}  Bxf3 {[%clk 0:02:36]} 12. Bxf3 {[%clk 0:02:24]}  Ne4 {[%clk 0:02:35]} 13. Bxe4 {[%clk 0:02:18]}  dxe4 {[%clk 0:02:34]} 14. Qg4 {[%clk 0:02:19]}  f6 {[%clk 0:01:50]} 15. Qxe4 {[%clk 0:02:13]}  Re8 {[%clk 0:01:50]} 16. Qc4+ {[%clk 0:02:09]} 1-0


[Site "https://www.chess.com"]